bitfinex-derivatives/quotes_BTCF0:USTF0_20250218
["timestamp","ask_amount","ask_price","bid_price","bid_amount"]
[1739849706036,0.0311,96365.0,96364.0,0.2398363]
[1739849706438,0.0301,96365.0,96364.0,0.2408363]
[1739849707441,0.0301,96365.0,96364.0,0.2398363]
[1739849708931,0.0301,96365.0,96364.0,0.2388363]
[1739849709641,0.0311,96365.0,96364.0,0.2388363]
[1739849710141,0.0321,96365.0,96364.0,0.2388363]
[1739849712240,0.0331,96365.0,96364.0,0.2388363]
[1739849713134,0.0321,96365.0,96364.0,0.2388363]
[1739849713334,0.0331,96365.0,96364.0,0.2388363]
[1739849713945,0.0321,96365.0,96364.0,0.2388363]
[1739849714132,0.0331,96365.0,96364.0,0.2388363]
[1739849716042,0.0331,96365.0,96364.0,0.2075363]
[1739849721934,0.0321,96365.0,96364.0,0.2075363]
[1739849722239,0.0301,96365.0,96364.0,0.2075363]
[1739849722745,0.0311,96365.0,96364.0,0.2075363]
[1739849723646,0.0321,96365.0,96364.0,0.2075363]
[1739849723848,0.0311,96365.0,96364.0,0.2075363]
[1739849724044,0.0321,96365.0,96364.0,0.2075363]
[1739849724844,0.0311,96365.0,96364.0,0.2075363]
[1739849725144,0.0321,96365.0,96364.0,0.2075363]
[1739849725338,0.0311,96365.0,96364.0,0.2075363]
[1739849725539,0.0321,96365.0,96364.0,0.2075363]
[1739849725947,0.0311,96365.0,96364.0,0.2075363]
[1739849726847,0.0331,96365.0,96364.0,0.2075363]
[1739849727848,0.0321,96365.0,96364.0,0.2075363]
[1739849728041,0.0331,96365.0,96364.0,0.2075363]
[1739849728341,0.0311,96365.0,96364.0,0.2075363]
[1739849729346,0.0321,96365.0,96364.0,0.2075363]
[1739849729838,0.0311,96365.0,96364.0,0.2075363]
[1739849732346,0.0321,96365.0,96364.0,0.2075363]
[1739849732543,0.002,96365.0,96364.0,0.2075363]
[1739849732739,0.001,96365.0,96364.0,0.2075363]
[1739849733151,0.002,96365.0,96364.0,0.2075363]
[1739849733347,0.001,96365.0,96364.0,0.2075363]
[1739849736553,0.002,96365.0,96364.0,0.2075363]
[1739849736944,0.001,96365.0,96364.0,0.2075363]
[1739849738753,0.0332,96371.0,96370.0,0.2075253]
[1739849740451,0.0352,96371.0,96370.0,0.2075253]
[1739849741655,0.0362,96371.0,96370.0,0.2075253]
[1739849741956,0.0342,96371.0,96370.0,0.2075253]
[1739849742550,0.0362,96371.0,96370.0,0.2075253]
[1739849748557,0.397,96371.0,96370.0,0.2075253]
[1739849749452,0.397,96371.0,96362.0,0.0131269]
[1739849749657,0.3608,96363.0,96350.0,0.06666638]
[1739849749958,0.3608,96353.0,96327.0,0.0319]
[1739849750159,0.3608,96353.0,96345.0,0.2076676]
[1739849751855,0.3608,96353.0,96352.0,0.0021557]
[1739849752251,0.3608,96353.0,96352.0,0.0001557]
[1739849752459,0.3628,96353.0,96352.0,0.0001557]
[1739849753261,0.37568535,96353.0,96352.0,0.01295532]
[1739849753463,0.37568535,96353.0,96352.0,0.0001557]
[1739849754464,0.37568535,96353.0,96352.0,0.2078157]
[1739849754761,0.3628,96353.0,96352.0,0.0001557]
[1739849754961,0.002,96353.0,96352.0,0.01261405]
[1739849755359,0.002,96353.0,96352.0,0.07561405]
[1739849758066,0.002,96353.0,96352.0,0.43641405]
[1739849758469,0.0332,96371.0,96369.0,0.2075276]
[1739849758767,0.0332,96371.0,96370.0,0.3913]
[1739849761061,0.0352,96371.0,96370.0,0.3913]
[1739849762268,0.0352,96371.0,96370.0,0.4245]
[1739849764660,0.0332,96371.0,96370.0,0.4245]
[1739849764859,0.0352,96371.0,96370.0,0.4245]
[1739849767466,0.0352,96371.0,96370.0,0.0637]
[1739849777880,0.0342,96371.0,96370.0,0.0637]
[1739849779479,0.0342,96371.0,96370.0,0.0305]
[1739849779876,0.0352,96371.0,96370.0,0.0305]
[1739849781281,0.0352,96371.0,96369.0,0.2075276]
[1739849781483,0.0342,96371.0,96369.0,0.2075276]
[1739849782580,0.0352,96371.0,96369.0,0.2075276]
[1739849783286,0.0342,96371.0,96369.0,0.2075276]
[1739849795895,0.0342,96371.0,96364.0,0.3608]
[1739849796790,0.0342,96371.0,96365.0,0.2075348]
[1739849797391,0.0332,96371.0,96365.0,0.2075348]
[1739849798383,0.0332,96371.0,96364.0,0.3608]
[1739849798584,0.0332,96371.0,96369.0,0.2075253]
[1739849799896,0.0332,96371.0,96364.0,0.3608]
[1739849805493,0.394,96371.0,96364.0,0.3608]
[1739849809000,0.394,96371.0,96354.0,0.10288]
[1739849809203,0.27420266,96364.0,96353.0,0.5690009]
[1739849809402,0.0646,96363.0,96354.0,0.2075582]
[1739849809898,0.0646,96363.0,96354.0,0.2407582]
[1739849810497,0.0646,96363.0,96354.0,0.2437582]
[1739849811094,0.0646,96363.0,96354.0,0.0402]
[1739849811411,0.0646,96363.0,96355.0,0.0313]
[1739849811598,0.0646,96363.0,96357.0,0.2075518]
[1739849812703,0.0646,96363.0,96357.0,0.2105518]
[1739849813710,0.0646,96363.0,96357.0,0.2125518]
[1739849815903,0.0646,96363.0,96357.0,0.005]
[1739849816201,0.0646,96363.0,96358.0,0.2075495]
[1739849817609,0.0646,96363.0,96358.0,0.2095495]
[1739849817911,0.0646,96363.0,96358.0,0.2115495]
[1739849821117,0.0315,96363.0,96358.0,0.004]
[1739849821313,0.2164,96369.0,96365.0,0.2075335]
[1739849821515,0.033,96368.0,96366.0,0.0626]
[1739849825619,0.033,96368.0,96366.0,0.0325]
[1739849828620,0.033,96368.0,96366.0,0.065]
[1739849841327,0.033,96368.0,96367.0,0.207531]
[1739849842427,0.034,96368.0,96367.0,0.207531]
[1739849843934,0.001,96368.0,96367.0,0.207531]
[1739849857840,0.001,96368.0,96367.0,0.568331]
[1739849865946,0.001,96368.0,96367.0,0.207531]
[1739849866147,0.001,96368.0,96367.0,0.568331]
[1739849877951,0.001,96368.0,96367.0,0.207531]
[1739849898473,0.001,96368.0,96367.0,0.208531]
[1739849899273,0.0633,96377.0,96370.0,0.2075243]
[1739849903176,0.0643,96377.0,96370.0,0.2075243]
[1739849903573,0.0633,96377.0,96370.0,0.2075243]
[1739849905768,0.0643,96377.0,96370.0,0.2075243]
[1739849910081,0.0643,96377.0,96371.0,0.2075206]
[1739849913982,0.0643,96377.0,96372.0,0.2075196]
[1739849915282,0.0633,96377.0,96372.0,0.2075196]
[1739849915487,0.0653,96377.0,96372.0,0.2075196]
[1739849923698,0.0653,96377.0,96373.0,0.0317]
[1739849925196,0.0633,96377.0,96373.0,0.0317]
[1739849925397,0.0653,96377.0,96373.0,0.0317]
[1739849927898,0.0653,96377.0,96368.0,0.0319]
[1739849929300,0.0653,96377.0,96372.0,0.2075198]
[1739849929505,0.0653,96377.0,96373.0,0.2075172]
[1739849929799,0.0633,96377.0,96373.0,0.2075172]
[1739849930005,0.0633,96377.0,96374.0,0.0325]
[1739849932103,0.0643,96377.0,96374.0,0.0325]
[1739849932605,0.0653,96377.0,96374.0,0.0325]
[1739849933694,0.0653,96377.0,96374.0,0.04388713]
[1739849949919,0.0653,96377.0,96374.0,0.01138713]
[1739849950103,0.0653,96377.0,96368.0,0.0319]
[1739849950303,0.0653,96377.0,96371.0,0.2075216]
[1739849950913,0.0653,96377.0,96372.0,0.2075195]
[1739849951115,0.0633,96377.0,96373.0,0.2075172]
[1739849951907,0.0643,96377.0,96373.0,0.2075172]
[1739849952809,0.0633,96377.0,96373.0,0.21879069]
[1739849953009,0.0653,96377.0,96373.0,0.21879069]
[1739849966622,0.0653,96377.0,96374.0,0.207515]
[1739849967929,0.0633,96377.0,96374.0,0.207515]
[1739849968124,0.0653,96377.0,96374.0,0.207515]
[1739849970626,0.3608,96376.0,96374.0,0.207515]
[1739849970822,0.3608,96376.0,96373.0,0.01127349]
[1739849971029,0.3608,96376.0,96368.0,0.0319]
[1739849971328,0.3608,96376.0,96370.0,0.2075237]
[1739849972621,0.3618,96376.0,96370.0,0.21859041]
[1739849979431,0.3618,96376.0,96371.0,0.2075217]
[1739849979931,0.3618,96376.0,96372.0,0.0308]
[1739849981529,0.3628,96376.0,96372.0,0.0308]
[1739849988640,0.45836505,96376.0,96372.0,0.0308]
[1739849991344,0.45836505,96376.0,96372.0,0.2383193]
[1739849994541,0.09756505,96376.0,96372.0,0.2383193]
[1739849995237,0.09756505,96376.0,96373.0,0.2075171]
[1739849997347,0.002,96376.0,96373.0,0.2075171]
[1739849999951,0.2075225,96371.0,96370.0,0.01106671]
[1739850000150,0.2075225,96371.0,96367.0,0.36144]
[1739850000345,0.0331,96370.0,96367.0,0.3608]
[1739850000844,0.0603,96369.0,96367.0,0.3608]
[1739850001246,0.0603,96369.0,96367.0,0.5683297]
[1739850002142,0.0603,96369.0,96367.0,0.57987205]
[1739850012257,0.0603,96369.0,96356.0,0.0626]
[1739850012448,0.3608,96361.0,96355.0,0.00064]
[1739850012651,0.0943,96360.0,96355.0,0.01137505]
[1739850012852,0.0943,96360.0,96347.0,0.36144]
[1739850012853,0.0943,96360.0,96347.0,0.00128]
[1739850013063,0.0943,96360.0,96343.0,0.2691815]
[1739850013354,0.3608,96353.0,96343.0,0.0616]
[1739850013556,0.2075636,96352.0,96342.0,0.18674477]
[1739850013756,0.2075696,96350.0,96342.0,0.18674477]
[1739850013960,0.2351717,96349.0,96342.0,0.18674477]
[1739850014161,0.3608,96343.0,96342.0,0.18674477]
[1739850014463,0.3608,96343.0,96328.0,0.0325]
[1739850014464,0.5742,96343.0,96328.0,0.0325]
[1739850014658,0.06666436,96340.0,96328.0,0.0325]
[1739850014954,0.06666436,96340.0,96336.0,0.2075961]
[1739850015261,0.21700001,96343.0,96336.0,0.2075961]
[1739850015462,0.2164,96343.0,96336.0,0.2075961]
[1739850015656,0.2164,96343.0,96342.0,0.002]
[1739850015858,0.2164,96343.0,96342.0,0.2095849]
[1739850016057,0.2164,96343.0,96342.0,0.5703849]
[1739850016361,0.0001557,96345.0,96344.0,0.2075806]
[1739850017760,0.0001557,96345.0,96344.0,0.2085806]
[1739850018366,0.0001557,96345.0,96344.0,0.2095806]
[1739850018855,0.0001557,96345.0,96344.0,0.002]
[1739850037889,0.3609557,96345.0,96344.0,0.002]
[1739850038387,0.3927557,96345.0,96344.0,0.002]
[1739850041786,0.6003341,96345.0,96344.0,0.002]
[1739850042384,0.6023341,96345.0,96344.0,0.001]
[1739850042589,0.3977557,96345.0,96336.0,0.01091498]
[1739850042786,0.0308,96344.0,96334.0,0.0647]
[1739850042988,0.09746436,96344.0,96334.0,0.0647]
[1739850043789,0.207592,96339.0,96334.0,0.0647]
[1739850043988,0.2400934,96338.0,96334.0,0.0657]
[1739850044291,0.0302,96337.0,96334.0,0.0657]
[1739850044991,0.0302,96337.0,96334.0,0.0647]
[1739850045289,0.0302,96337.0,96334.0,0.0657]
[1739850045486,0.0302,96337.0,96334.0,0.07705452]
[1739850045690,0.0302,96337.0,96334.0,0.07805452]
[1739850048890,0.0325,96338.0,96334.0,0.07805452]
[1739850049094,0.09560172,96344.0,96337.0,0.3608]
[1739850050690,0.0001557,96345.0,96337.0,0.3608]
[1739850053291,0.2077339,96345.0,96337.0,0.3608]
[1739850054487,0.2075804,96344.0,96337.0,0.3608]
[1739850059890,0.0001557,96345.0,96337.0,0.3608]
[1739850061994,0.0001557,96345.0,96337.0,0.5683941]
[1739850064895,0.0001557,96345.0,96338.0,0.2075921]
[1739850065097,0.0001557,96345.0,96340.0,0.2075877]
[1739850066101,0.0011557,96345.0,96340.0,0.2075877]
[1739850066308,0.0011557,96345.0,96343.0,0.2075803]
[1739850066506,0.0011557,96345.0,96344.0,0.0613]
[1739850067094,0.0011557,96345.0,96344.0,0.0927]
[1739850067292,0.0001557,96345.0,96344.0,0.0927]
[1739850067493,0.0021557,96345.0,96344.0,0.0927]
[1739850067803,0.0031557,96345.0,96344.0,0.0927]
[1739850068307,0.09459557,96354.0,96353.0,0.2075603]
[1739850069514,0.09659557,96354.0,96353.0,0.2075603]
[1739850069922,0.005,96354.0,96353.0,0.2075603]
[1739850070219,0.005,96354.0,96353.0,0.3103603]
[1739850082322,0.005,96354.0,96353.0,0.6711603]
[1739850084628,0.002,96354.0,96353.0,0.6711603]
[1739850084833,0.003,96354.0,96353.0,0.6711603]
[1739850085034,0.002,96354.0,96353.0,0.6711603]
[1739850085429,0.001,96354.0,96353.0,0.6711603]
[1739850085635,0.0635,96364.0,96355.0,0.2075555]
[1739850085932,0.0635,96364.0,96353.0,0.4636]
[1739850085933,0.0635,96364.0,96356.0,0.0628]
[1739850086234,0.0635,96364.0,96358.0,0.207548]
[1739850087033,0.0635,96364.0,96358.0,0.21851493]
[1739850087337,0.0635,96364.0,96361.0,0.3608]
[1739850088625,0.0645,96364.0,96361.0,0.3608]
[1739850088828,0.0655,96364.0,96361.0,0.3608]
[1739850101141,0.2075475,96359.0,96358.0,0.01096693]
[1739850101452,0.0655,96364.0,96353.0,0.00064]
[1739850101453,0.2075583,96354.0,96353.0,0.00064]
[1739850101642,0.2075583,96354.0,96350.0,0.0001557]
[1739850101950,0.267962,96353.0,96350.0,0.0001557]
[1739850102848,0.0604,96353.0,96350.0,0.3629557]
[1739850103040,0.0604,96353.0,96350.0,0.37413969]
[1739850103752,0.0604,96353.0,96350.0,0.37713969]
[1739850118351,0.0604,96353.0,96350.0,0.01633969]
[1739850121364,0.1922,96376.0,96350.0,0.01633969]
[1739850121559,0.1922,96376.0,96351.0,0.0327]
[1739850121560,0.06666436,96360.0,96351.0,0.0327]
[1739850121755,0.2075379,96364.0,96352.0,0.207562]
[1739850121951,0.06666436,96362.0,96352.0,0.207562]
[1739850122857,0.27420666,96362.0,96352.0,0.207562]
[1739850123059,0.2075532,96357.0,96351.0,0.002]
[1739850123361,0.0965,96356.0,96352.0,0.002]
[1739850126068,0.0965,96356.0,96352.0,0.004]
[1739850127962,0.2075605,96354.0,96352.0,0.004]
[1739850129170,0.2075605,96354.0,96352.0,0.002]
[1739850129373,0.2075605,96354.0,96352.0,0.004]
[1739850133269,0.0965,96356.0,96352.0,0.004]
[1739850133672,0.3040549,96356.0,96352.0,0.004]
[1739850134168,0.2075578,96355.0,96352.0,0.004]
[1739850134372,0.2075578,96355.0,96352.0,0.002]
[1739850134575,0.2075578,96355.0,96352.0,0.004]
[1739850135174,0.2075578,96355.0,96352.0,0.002]
[1739850135372,0.2075578,96355.0,96352.0,0.004]
[1739850136564,0.2075578,96355.0,96353.0,0.0324]
[1739850137771,0.2075578,96355.0,96353.0,0.0344]
[1739850138171,0.2075578,96355.0,96353.0,0.0354]
[1739850138475,0.0645,96356.0,96353.0,0.0354]
[1739850139179,0.09558302,96360.0,96359.0,0.2075479]
[1739850139763,0.09558302,96360.0,96359.0,0.0314]
[1739850141579,0.09658302,96360.0,96358.0,0.3608]
[1739850141881,0.09758302,96360.0,96358.0,0.3608]
[1739850142674,0.002,96360.0,96358.0,0.3608]
[1739850143285,0.001,96360.0,96358.0,0.3608]
[1739850143766,0.0302,96364.0,96358.0,0.3608]
[1739850143965,0.2075493,96359.0,96350.0,0.01133969]
[1739850144181,0.3608,96355.0,96350.0,0.01133969]
[1739850144365,0.0934,96354.0,96350.0,0.01133969]
[1739850144775,0.2075639,96352.0,96350.0,0.01133969]
[1739850144982,0.2075639,96352.0,96350.0,0.0001557]
[1739850145573,0.2075639,96352.0,96350.0,0.0021557]
[1739850147082,0.2075639,96352.0,96350.0,0.0001557]
[1739850147384,0.2075639,96352.0,96350.0,0.0051557]
[1739850151579,0.2164,96351.0,96350.0,0.0051557]
[1739850152285,0.2164,96351.0,96341.0,0.01069717]
[1739850152286,0.2075845,96342.0,96341.0,0.01069717]
[1739850152582,0.2075845,96342.0,96340.0,0.3608]
[1739850152788,0.0933,96341.0,96340.0,0.3608]
[1739850153284,0.0913,96341.0,96340.0,0.3608]
[1739850153683,0.0853,96341.0,96340.0,0.37177288]
[1739850153875,0.0853,96341.0,96340.0,0.37677288]
[1739850154378,0.0853,96341.0,96340.0,0.38277288]
[1739850162393,0.0528,96341.0,96340.0,0.38277288]
[1739850181506,0.0528,96341.0,96340.0,0.3718]
[1739850184509,0.0833,96341.0,96340.0,0.3718]
[1739850185811,0.0528,96341.0,96340.0,0.3718]
[1739850187900,0.0528,96341.0,96340.0,0.011]
[1739850225326,0.2076062,96332.0,96326.0,0.0609]
[1739850225631,0.2164,96332.0,96310.0,0.0015572]
[1739850225815,0.2076368,96318.0,96313.0,0.0309]
[1739850226019,0.0627,96317.0,96313.0,0.0309]
[1739850226433,0.0607,96317.0,96313.0,0.0309]
[1739850226731,0.0587,96317.0,96313.0,0.0309]
[1739850226930,0.0587,96317.0,96313.0,0.04147161]
[1739850227320,0.0617,96317.0,96313.0,0.04147161]
[1739850227935,0.2693405,96317.0,96313.0,0.04147161]
[1739850228832,0.2388405,96317.0,96313.0,0.04147161]
[1739850229032,0.0312,96317.0,96313.0,0.04147161]
[1739850229533,0.0302,96317.0,96313.0,0.04147161]
[1739850229833,0.0302,96317.0,96315.0,0.3608]
[1739850230331,0.004,96317.0,96316.0,0.2076408]
[1739850230634,0.004,96317.0,96316.0,0.2398408]
[1739850231318,0.006,96317.0,96316.0,0.2398408]
[1739850232926,0.004,96317.0,96316.0,0.2398408]
[1739850233429,0.001,96317.0,96316.0,0.2398408]
[1739850236931,0.2474,96340.0,96316.0,0.0322]
[1739850236932,0.2164,96340.0,96316.0,0.0322]
[1739850237134,0.0317,96339.0,96330.0,0.42746436]
[1739850237322,0.0317,96339.0,96331.0,0.063]
[1739850237830,0.0317,96339.0,96334.0,0.2076008]
[1739850238335,0.0327,96339.0,96336.0,0.2075976]
[1739850239432,0.0347,96339.0,96336.0,0.2075976]
[1739850240134,0.0347,96339.0,96336.0,0.21843287]
[1739850240639,0.0357,96339.0,96336.0,0.21843287]
[1739850241839,0.0367,96339.0,96336.0,0.21843287]
[1739850242533,0.0367,96339.0,96337.0,0.207594]
[1739850242731,0.0327,96339.0,96337.0,0.207594]
[1739850242935,0.003,96339.0,96338.0,0.3608]
[1739850243437,0.004,96339.0,96338.0,0.5683934]
[1739850244732,0.002,96339.0,96338.0,0.5683934]
[1739850244931,0.001,96339.0,96338.0,0.5683934]
[1739850246641,0.002,96339.0,96338.0,0.5683934]
[1739850247143,0.001,96339.0,96338.0,0.5683934]
[1739850248142,0.0001557,96345.0,96342.0,0.2075845]
[1739850248343,0.0001557,96345.0,96343.0,0.0629]
[1739850249434,0.0001557,96345.0,96343.0,0.2704811]
[1739850249645,0.0021557,96345.0,96343.0,0.2704811]
[1739850250247,0.0041557,96345.0,96343.0,0.2704811]
[1739850254445,0.0041557,96345.0,96344.0,0.3608]
[1739850255642,0.0021557,96345.0,96344.0,0.3608]
[1739850255945,0.31198663,96359.0,96356.0,0.2075526]
[1739850256147,0.064,96358.0,96356.0,0.2075526]
[1739850257341,0.07,96358.0,96356.0,0.2075526]
[1739850258147,0.077,96358.0,96356.0,0.2075526]
[1739850260139,0.077,96358.0,96356.0,0.01376187]
[1739850260344,0.077,96358.0,96353.0,0.3608]
[1739850261449,0.075,96358.0,96353.0,0.3608]
[1739850262357,0.074,96358.0,96353.0,0.37411315]
[1739850265458,0.074,96358.0,96353.0,0.01331315]
[1739850265759,0.074,96358.0,96351.0,0.2075638]
[1739850266855,0.069,96358.0,96351.0,0.2075638]
[1739850267162,0.073,96358.0,96351.0,0.2075638]
[1739850269152,0.073,96358.0,96351.0,0.22100005]
[1739850270364,0.2805508,96358.0,96351.0,0.22100005]
[1739850271860,0.2805508,96358.0,96347.0,0.0001557]
[1739850271861,0.2075551,96356.0,96347.0,0.0001557]
[1739850272655,0.2075551,96356.0,96348.0,0.3608]
[1739850272857,0.2075551,96356.0,96348.0,0.3744407]
[1739850273058,0.2105551,96356.0,96348.0,0.3744407]
[1739850273765,0.2135551,96356.0,96348.0,0.3744407]
[1739850274353,0.2075572,96355.0,96348.0,0.3744407]
[1739850275767,0.2105572,96355.0,96348.0,0.3744407]
[1739850276364,0.2145572,96355.0,96348.0,0.3744407]
[1739850278962,0.2145572,96355.0,96349.0,0.0319]
[1739850280061,0.2105572,96355.0,96349.0,0.0319]
[1739850280264,0.2145572,96355.0,96349.0,0.0319]
[1739850281258,0.2115572,96355.0,96349.0,0.0319]
[1739850281459,0.2145572,96355.0,96349.0,0.0319]
[1739850281860,0.2075695,96349.0,96348.0,0.3750807]
[1739850282058,0.2075695,96349.0,96348.0,0.3744407]
[1739850283068,0.2145695,96349.0,96348.0,0.3744407]
[1739850288165,0.2135695,96349.0,96348.0,0.3744407]
[1739850288838,0.2145695,96349.0,96348.0,0.3744407]
[1739850288969,0.2145695,96349.0,96347.0,0.0001557]
[1739850289167,0.0954,96348.0,96347.0,0.0001557]
[1739850290959,0.10868902,96348.0,96347.0,0.0001557]
[1739850291272,0.11168902,96348.0,96347.0,0.0001557]
[1739850291762,0.0984,96348.0,96347.0,0.0001557]
[1739850292364,0.1024,96348.0,96347.0,0.0001557]
[1739850300689,0.0724,96348.0,96347.0,0.0001557]
[1739850303493,0.0395,96348.0,96347.0,0.0001557]
[1739850312005,0.05267818,96348.0,96347.0,0.0001557]
[1739850312302,0.11576535,96348.0,96347.0,0.0001557]
[1739850316710,0.32333695,96348.0,96347.0,0.0001557]
[1739850317599,0.2470716,96348.0,96347.0,0.0001557]
[1739850324609,0.32333574,96348.0,96347.0,0.0001557]
[1739850342007,0.11576414,96348.0,96347.0,0.0001557]
[1739850345427,0.08326414,96348.0,96347.0,0.3609557]
[1739850345626,0.08326414,96348.0,96347.0,0.3938557]
[1739850346336,0.08326414,96348.0,96347.0,0.0330557]
[1739850346530,0.08326414,96348.0,96347.0,0.0001557]
[1739850347020,0.08226414,96348.0,96347.0,0.0001557]
[1739850349422,0.003,96348.0,96347.0,0.0001557]
[1739850349621,0.007,96348.0,96347.0,0.0001557]
[1739850356538,0.08325871,96348.0,96347.0,0.0001557]
[1739850368338,0.08325871,96348.0,96330.0,0.3608]
[1739850368541,0.2075966,96337.0,96332.0,0.0651]
[1739850368741,0.0633,96336.0,96332.0,0.0651]
[1739850369142,0.2076021,96334.0,96332.0,0.0651]
[1739850369342,0.2076021,96334.0,96332.0,0.0327]
[1739850369535,0.2076076,96331.0,96330.0,0.37439832]
[1739850369736,0.2076076,96331.0,96330.0,0.37375832]
[1739850370145,0.2056076,96331.0,96330.0,0.37375832]
[1739850370340,0.2056076,96331.0,96330.0,0.01295832]
[1739850370545,0.0633,96336.0,96327.0,0.00121097]
[1739850370840,0.205614,96328.0,96327.0,0.00121097]
[1739850371540,0.205614,96328.0,96327.0,0.01396257]
[1739850373054,0.205614,96328.0,96327.0,0.01596257]
[1739850381348,0.205614,96328.0,96327.0,0.00321097]
[1739850383249,0.205614,96328.0,96327.0,0.00121097]
[1739850386350,0.2076226,96324.0,96323.0,1e-08]
[1739850387449,0.2106226,96324.0,96323.0,1e-08]
[1739850387652,0.4270226,96324.0,96323.0,1e-08]
[1739850387960,0.4300226,96324.0,96323.0,1e-08]
[1739850389159,0.2224,96324.0,96323.0,1e-08]
[1739850389743,0.2194,96324.0,96323.0,1e-08]
[1739850389948,0.2244,96324.0,96323.0,1e-08]
[1739850390143,0.2274,96324.0,96323.0,1e-08]
[1739850390958,0.011,96324.0,96323.0,1e-08]
[1739850393250,0.01,96324.0,96323.0,1e-08]
[1739850393855,0.005,96324.0,96323.0,1e-08]
[1739850394046,0.01,96324.0,96323.0,1e-08]
[1739850395861,0.005,96324.0,96323.0,1e-08]
[1739850396060,0.009,96324.0,96323.0,0.01223362]
[1739850396257,0.004,96324.0,96323.0,0.01223362]
[1739850396457,0.009,96324.0,96323.0,0.01223362]
[1739850397764,0.009,96324.0,96323.0,1e-08]
[1739850403464,0.004,96324.0,96323.0,1e-08]
[1739850403664,0.08227836,96324.0,96323.0,1e-08]
[1739850404071,0.11247836,96324.0,96323.0,1e-08]
[1739850406771,0.11347836,96324.0,96323.0,1e-08]
[1739850408079,0.14517836,96324.0,96323.0,1e-08]
[1739850409366,0.0689,96324.0,96323.0,1e-08]
[1739850410277,0.08096894,96324.0,96323.0,1e-08]
[1739850411968,0.08296894,96324.0,96323.0,1e-08]
[1739850412780,0.08496894,96324.0,96323.0,1e-08]
[1739850414776,0.30136894,96324.0,96323.0,1e-08]
[1739850415978,0.3776635,96324.0,96323.0,1e-08]
[1739850418071,0.4092635,96324.0,96323.0,1e-08]
[1739850418778,0.50489355,96324.0,96323.0,1e-08]
[1739850424181,0.86569355,96324.0,96323.0,1e-08]
[1739850426473,0.7700635,96324.0,96323.0,1e-08]
[1739850433782,0.7383635,96324.0,96323.0,1e-08]
[1739850435186,0.83398791,96324.0,96323.0,1e-08]
[1739850438291,0.98742702,96324.0,96323.0,1e-08]
[1739850440694,0.7383635,96324.0,96323.0,1e-08]
[1739850442695,0.72629456,96324.0,96323.0,1e-08]
[1739850442994,0.66449456,96324.0,96323.0,1e-08]
[1739850446389,0.69739456,96324.0,96323.0,1e-08]
[1739850454597,0.69739456,96324.0,96315.0,0.3608]
[1739850454802,0.2076399,96316.0,96315.0,0.3608]
[1739850457209,0.2096399,96316.0,96315.0,0.3608]
[1739850457510,0.28893446,96316.0,96315.0,0.3608]
[1739850458411,0.08129456,96316.0,96307.0,0.3922]
[1739850458708,0.2076566,96309.0,96307.0,0.3922]
[1739850459612,0.2076566,96309.0,96307.0,0.40444123]
[1739850459812,0.2076566,96309.0,96308.0,0.031]
[1739850464614,0.26783444,96309.0,96308.0,0.031]
[1739850466008,0.06017784,96309.0,96308.0,0.031]
[1739850468015,0.20816791,96313.0,96308.0,0.031]
[1739850468217,0.2076479,96313.0,96308.0,0.031]
[1739850476019,0.07628679,96312.0,96308.0,0.031]
[1739850480525,0.10908679,96312.0,96308.0,0.031]
[1739850481020,0.10908679,96312.0,96311.0,0.3608]
[1739850481225,0.0328,96312.0,96311.0,0.3608]
[1739850482425,0.0338,96312.0,96311.0,0.3608]
[1739850483425,0.0348,96312.0,96311.0,0.3608]
[1739850485423,0.11108729,96312.0,96311.0,0.3608]
[1739850492522,0.17126332,96312.0,96311.0,0.3608]
[1739850497932,0.2076593,96307.0,96306.0,0.0001557]
[1739850501830,0.3608,96307.0,96300.0,0.01167119]
[1739850502031,0.2076899,96293.0,96289.0,0.36235755]
[1739850502238,0.0923,96292.0,96289.0,0.36235755]
[1739850503951,0.0933,96292.0,96289.0,0.3739463]
[1739850504739,0.0943,96292.0,96289.0,0.3739463]
[1739850506735,0.2076957,96291.0,96289.0,0.3739463]
[1739850507139,0.34415902,96291.0,96289.0,0.3739463]
[1739850507440,0.34415902,96291.0,96289.0,0.36235755]
[1739850507834,0.34415902,96291.0,96289.0,0.37427834]
[1739850508032,0.34515902,96291.0,96289.0,0.37427834]
[1739850508233,0.34615902,96291.0,96289.0,0.37427834]
[1739850509138,0.13846332,96291.0,96289.0,0.37272079]
[1739850509336,0.13846332,96291.0,96290.0,0.0634]
[1739850509639,0.13746332,96291.0,96290.0,0.0634]
[1739850509942,0.13646332,96291.0,96290.0,0.0634]
[1739850511344,0.09562937,96299.0,96290.0,0.0634]
[1739850511639,0.09562937,96299.0,96298.0,0.3608]
[1739850514445,0.09562937,96299.0,96297.0,0.063]
[1739850514648,0.09562937,96299.0,96298.0,0.3608]
[1739850514845,0.00015578,96300.0,96298.0,0.3608]
[1739850515047,0.00015578,96300.0,96299.0,0.0317]
[1739850516642,0.00115578,96300.0,96299.0,0.0317]
[1739850517039,0.00015578,96300.0,96299.0,0.0317]
[1739850522450,0.06033303,96300.0,96299.0,0.0317]
[1739850528449,0.06033303,96300.0,96299.0,0.7533]
[1739850531757,0.00015578,96300.0,96299.0,0.7533]
[1739850539264,0.00015578,96300.0,96299.0,0.7216]
[1739850547164,0.06032926,96300.0,96299.0,0.7216]
[1739850550261,0.06032926,96300.0,96298.0,0.2076777]
[1739850550572,0.0932,96299.0,96298.0,0.2076777]
[1739850550771,0.0932,96299.0,96298.0,0.9292777]
[1739850551268,0.09561706,96320.0,96298.0,0.7216]
[1739850551465,0.0624,96319.0,96312.0,0.2076476]
[1739850551665,0.0624,96319.0,96318.0,0.3608]
[1739850552668,0.0644,96319.0,96318.0,0.3608]
[1739850553868,0.0644,96319.0,96318.0,0.3721825]
[1739850554074,0.0694,96319.0,96318.0,0.3721825]
[1739850554466,0.1017,96319.0,96318.0,0.7329825]
[1739850554773,0.1037,96319.0,96318.0,0.7329825]
[1739850570684,0.1037,96319.0,96318.0,0.3721825]
[1739850576676,0.0716,96319.0,96318.0,0.3721825]
[1739850580093,0.0646,96319.0,96318.0,0.3721825]